[Event "Titled Tuesday Blitz January 10 Late 2023"]
[White "Mekhane, Adam"]
[Black "Volkov, Maksim"]
[WhiteFideId "36050601"]
[BlackFideId "54123070"]
[WhiteElo "2280"]
[BlackElo "2258"]
[Result "0-1"]
[Round "03"]
[TimeControl "180+2"]
[Date "2023.01.10"]
[WhiteClock "0:00:02"]
[BlackClock "0:00:22"]

1. e4 {[%clk 0:00:00]}  c5 {[%clk 0:00:00]} 2. Nf3 {[%clk 0:03:00]}  d6 {[%clk 0:02:59]} 3. Bb5+ {[%clk 0:03:00]}  Nd7 {[%clk 0:02:59]} 4. a4 {[%clk 0:02:57]}  a6 {[%clk 0:02:59]} 5. Be2 {[%clk 0:02:56]}  Ngf6 {[%clk 0:02:59]} 6. Nc3 {[%clk 0:02:54]}  e6 {[%clk 0:02:57]} 7. d4 {[%clk 0:02:55]}  cxd4 {[%clk 0:02:53]} 8. Qxd4 {[%clk 0:02:53]}  Qc7 {[%clk 0:02:52]} 9. Bg5 {[%clk 0:02:53]}  b6 {[%clk 0:02:50]} 10. O-O {[%clk 0:02:45]}  Bb7 {[%clk 0:02:48]} 11. Rfd1 {[%clk 0:02:43]}  Be7 {[%clk 0:02:47]} 12. h3 {[%clk 0:02:21]}  O-O {[%clk 0:02:47]} 13. Bf1 {[%clk 0:02:09]}  Rac8 {[%clk 0:02:46]} 14. Qe3 {[%clk 0:02:04]}  Rfe8 {[%clk 0:02:45]} 15. Rd2 {[%clk 0:01:55]}  Nc5 {[%clk 0:02:44]} 16. Bd3 {[%clk 0:01:38]}  Rcd8 {[%clk 0:02:23]} 17. Rad1 {[%clk 0:01:26]}  h6 {[%clk 0:02:09]} 18. Bh4 {[%clk 0:01:24]}  Nfd7 {[%clk 0:02:00]} 19. Bxe7 {[%clk 0:01:19]}  Rxe7 {[%clk 0:01:57]} 20. Nd4 {[%clk 0:01:19]}  Ne5 {[%clk 0:01:58]} 21. f4 {[%clk 0:01:16]}  Nexd3 {[%clk 0:01:54]} 22. cxd3 {[%clk 0:01:15]}  e5 {[%clk 0:01:51]} 23. Nf5 {[%clk 0:01:16]}  Re6 {[%clk 0:01:31]} 24. b4 {[%clk 0:01:13]}  Nb3 {[%clk 0:01:30]} 25. Rc2 {[%clk 0:00:48]}  Rf6 {[%clk 0:01:16]} 26. Rb1 {[%clk 0:00:41]}  exf4 {[%clk 0:01:01]} 27. Qf2 {[%clk 0:00:26]}  Nc5 {[%clk 0:00:59]} 28. bxc5 {[%clk 0:00:20]}  dxc5 {[%clk 0:00:43]} 29. Rd2 {[%clk 0:00:20]}  Kh7 {[%clk 0:00:44]} 30. Ne2 {[%clk 0:00:14]}  g6 {[%clk 0:00:43]} 31. Nh4 {[%clk 0:00:14]}  Bxe4 {[%clk 0:00:43]} 32. Rbd1 {[%clk 0:00:14]}  Bc6 {[%clk 0:00:43]} 33. Nf3 {[%clk 0:00:13]}  Bxa4 {[%clk 0:00:42]} 34. Ra1 {[%clk 0:00:13]}  Bb5 {[%clk 0:00:42]} 35. d4 {[%clk 0:00:12]}  c4 {[%clk 0:00:43]} 36. Nc3 {[%clk 0:00:13]}  Bc6 {[%clk 0:00:43]} 37. Ne5 {[%clk 0:00:13]}  Bb7 {[%clk 0:00:43]} 38. Qh4 {[%clk 0:00:13]}  Kg7 {[%clk 0:00:43]} 39. Rf1 {[%clk 0:00:09]}  g5 {[%clk 0:00:42]} 40. Qh5 {[%clk 0:00:08]}  b5 {[%clk 0:00:42]} 41. h4 {[%clk 0:00:08]}  Rf5 {[%clk 0:00:38]} 42. Ng4 {[%clk 0:00:08]}  Rd6 {[%clk 0:00:32]} 43. d5 {[%clk 0:00:06]}  Qa5 {[%clk 0:00:30]} 44. Ne4 {[%clk 0:00:06]}  Rg6 {[%clk 0:00:25]} 45. hxg5 {[%clk 0:00:05]}  hxg5 {[%clk 0:00:25]} 46. Re2 {[%clk 0:00:05]}  Bxd5 {[%clk 0:00:22]} 47. Nd6 {[%clk 0:00:02]}  Qb6+ {[%clk 0:00:21]} 48. Kh2 {[%clk 0:00:02]}  Qxd6 {[%clk 0:00:22]} 49. Re8 {[%clk 0:00:02]}  f6 {[%clk 0:00:22]} 0-1


[Site "https://www.chess.com"]

[Event "Titled Tuesday Blitz January 10 Late 2023"]
[White "Arenas, David"]
[Black "UnknownMagician"]
[WhiteFideId "4403177"]
[WhiteElo "2426"]
[BlackElo "2662"]
[Result "0-1"]
[Round "03"]
[TimeControl "180+2"]
[Date "2023.01.10"]
[WhiteClock "0:00:03"]
[BlackClock "0:00:10"]

1. e4 {[%clk 0:00:00]}  c6 {[%clk 0:00:00]} 2. d4 {[%clk 0:03:00]}  d5 {[%clk 0:02:59]} 3. e5 {[%clk 0:03:00]}  Bf5 {[%clk 0:03:00]} 4. Nd2 {[%clk 0:03:00]}  e6 {[%clk 0:03:00]} 5. Nb3 {[%clk 0:03:01]}  h6 {[%clk 0:02:59]} 6. Nf3 {[%clk 0:03:01]}  Ne7 {[%clk 0:02:58]} 7. Be2 {[%clk 0:03:01]}  Nd7 {[%clk 0:02:57]} 8. O-O {[%clk 0:03:01]}  g5 {[%clk 0:02:58]} 9. Bd2 {[%clk 0:03:01]}  Bg7 {[%clk 0:02:56]} 10. Bb4 {[%clk 0:02:56]}  O-O {[%clk 0:02:53]} 11. a4 {[%clk 0:02:56]}  f6 {[%clk 0:02:48]} 12. exf6 {[%clk 0:02:48]}  Bxf6 {[%clk 0:02:31]} 13. a5 {[%clk 0:02:43]}  Re8 {[%clk 0:02:32]} 14. c4 {[%clk 0:02:42]}  Ng6 {[%clk 0:02:26]} 15. Bd6 {[%clk 0:02:31]}  dxc4 {[%clk 0:02:17]} 16. Bxc4 {[%clk 0:02:22]}  Nb6 {[%clk 0:02:00]} 17. axb6 {[%clk 0:02:19]}  Qxd6 {[%clk 0:02:00]} 18. bxa7 {[%clk 0:02:15]}  Nf4 {[%clk 0:02:01]} 19. Re1 {[%clk 0:02:14]}  b5 {[%clk 0:01:48]} 20. Bf1 {[%clk 0:01:58]}  Qd5 {[%clk 0:01:42]} 21. Nc5 {[%clk 0:01:49]}  Re7 {[%clk 0:01:38]} 22. Ne5 {[%clk 0:01:37]}  Rexa7 {[%clk 0:01:35]} 23. Rxa7 {[%clk 0:01:12]}  Rxa7 {[%clk 0:01:31]} 24. Ng4 {[%clk 0:01:13]}  Bg7 {[%clk 0:01:32]} 25. Ne3 {[%clk 0:01:05]}  Qxd4 {[%clk 0:01:29]} 26. Nxf5 {[%clk 0:00:45]}  exf5 {[%clk 0:01:22]} 27. Qc2 {[%clk 0:00:43]}  Rf7 {[%clk 0:01:23]} 28. g3 {[%clk 0:00:42]}  Nd5 {[%clk 0:01:06]} 29. Ne6 {[%clk 0:00:34]}  Qb6 {[%clk 0:01:01]} 30. Bg2 {[%clk 0:00:31]}  Bf6 {[%clk 0:00:47]} 31. Bxd5 {[%clk 0:00:28]}  cxd5 {[%clk 0:00:41]} 32. Qxf5 {[%clk 0:00:20]}  Bxb2 {[%clk 0:00:40]} 33. Qg6+ {[%clk 0:00:21]}  Bg7 {[%clk 0:00:35]} 34. Re2 {[%clk 0:00:17]}  b4 {[%clk 0:00:35]} 35. Qc2 {[%clk 0:00:14]}  b3 {[%clk 0:00:33]} 36. Qc8+ {[%clk 0:00:11]}  Kh7 {[%clk 0:00:32]} 37. Nxg7 {[%clk 0:00:11]}  Kxg7 {[%clk 0:00:33]} 38. Qc3+ {[%clk 0:00:11]}  d4 {[%clk 0:00:26]} 39. Qb2 {[%clk 0:00:10]}  Qb4 {[%clk 0:00:24]} 40. Rd2 {[%clk 0:00:07]}  Qc3 {[%clk 0:00:24]} 41. Kg2 {[%clk 0:00:07]}  Ra7 {[%clk 0:00:22]} 42. Re2 {[%clk 0:00:03]}  Ra2 {[%clk 0:00:10]} 0-1


[Site "https://www.chess.com"]

[Event "Titled Tuesday Blitz January 10 Late 2023"]
[White "Le Goff, Ronan"]
[Black "Atanasov, Anthony"]
[WhiteFideId "612073"]
[BlackFideId "2623897"]
[WhiteElo "2320"]
[BlackElo "2368"]
[Result "0-1"]
[Round "03"]
[TimeControl "180+2"]
[Date "2023.01.10"]
[WhiteClock "0:00:57"]
[BlackClock "0:00:21"]

1. d4 {[%clk 0:00:00]}  Nf6 {[%clk 0:00:00]} 2. c4 {[%clk 0:02:56]}  g6 {[%clk 0:02:58]} 3. Nf3 {[%clk 0:02:54]}  Bg7 {[%clk 0:02:58]} 4. Nc3 {[%clk 0:02:49]}  d5 {[%clk 0:02:58]} 5. Bf4 {[%clk 0:02:25]}  O-O {[%clk 0:02:57]} 6. e3 {[%clk 0:02:24]}  c5 {[%clk 0:02:57]} 7. dxc5 {[%clk 0:02:25]}  Qa5 {[%clk 0:02:54]} 8. Rc1 {[%clk 0:02:24]}  dxc4 {[%clk 0:02:52]} 9. Bxc4 {[%clk 0:02:24]}  Qxc5 {[%clk 0:02:52]} 10. Bb3 {[%clk 0:02:23]}  Nc6 {[%clk 0:02:52]} 11. O-O {[%clk 0:02:15]}  Qh5 {[%clk 0:02:49]} 12. Nd5 {[%clk 0:02:14]}  Bg4 {[%clk 0:02:45]} 13. h3 {[%clk 0:02:07]}  Bxf3 {[%clk 0:02:32]} 14. Qxf3 {[%clk 0:02:04]}  Qxf3 {[%clk 0:02:25]} 15. gxf3 {[%clk 0:02:05]}  Nxd5 {[%clk 0:02:25]} 16. Bxd5 {[%clk 0:02:02]}  Rac8 {[%clk 0:02:22]} 17. Bxc6 {[%clk 0:02:02]}  Rxc6 {[%clk 0:02:22]} 18. Rxc6 {[%clk 0:01:54]}  bxc6 {[%clk 0:02:20]} 19. Rc1 {[%clk 0:01:54]}  Rc8 {[%clk 0:02:21]} 20. b4 {[%clk 0:01:53]}  e5 {[%clk 0:02:17]} 21. Bg3 {[%clk 0:01:52]}  f6 {[%clk 0:02:04]} 22. f4 {[%clk 0:01:47]}  e4 {[%clk 0:02:02]} 23. f5 {[%clk 0:01:47]}  gxf5 {[%clk 0:02:00]} 24. Bd6 {[%clk 0:01:46]}  Bf8 {[%clk 0:01:52]} 25. Bc5 {[%clk 0:01:44]}  Rb8 {[%clk 0:01:50]} 26. a3 {[%clk 0:01:38]}  a5 {[%clk 0:01:44]} 27. bxa5 {[%clk 0:01:36]}  Rb5 {[%clk 0:01:37]} 28. Bxf8 {[%clk 0:01:34]}  Kxf8 {[%clk 0:01:25]} 29. a6 {[%clk 0:01:27]}  c5 {[%clk 0:01:24]} 30. a7 {[%clk 0:01:26]}  Ra5 {[%clk 0:01:07]} 31. Rxc5 {[%clk 0:01:24]}  Rxa7 {[%clk 0:01:07]} 32. Rxf5 {[%clk 0:01:24]}  Kf7 {[%clk 0:01:06]} 33. Rf4 {[%clk 0:01:25]}  Ra4 {[%clk 0:01:03]} 34. f3 {[%clk 0:01:24]}  Rxa3 {[%clk 0:00:57]} 35. Rxe4 {[%clk 0:01:23]}  f5 {[%clk 0:00:57]} 36. Re5 {[%clk 0:01:23]}  Kf6 {[%clk 0:00:58]} 37. f4 {[%clk 0:01:20]}  Ra2 {[%clk 0:00:58]} 38. Rb5 {[%clk 0:01:20]}  Rc2 {[%clk 0:00:58]} 39. Rb6+ {[%clk 0:01:20]}  Kf7 {[%clk 0:00:58]} 40. h4 {[%clk 0:01:19]}  Re2 {[%clk 0:00:58]} 41. Rb3 {[%clk 0:01:19]}  Kg6 {[%clk 0:00:58]} 42. Kf1 {[%clk 0:01:18]}  Rh2 {[%clk 0:00:58]} 43. Rb6+ {[%clk 0:01:18]}  Kh5 {[%clk 0:00:58]} 44. Rf6 {[%clk 0:01:18]}  Kg4 {[%clk 0:00:58]} 45. Rh6 {[%clk 0:01:14]}  Rxh4 {[%clk 0:00:57]} 46. Rxh4+ {[%clk 0:01:14]}  Kxh4 {[%clk 0:00:26]} 47. e4 {[%clk 0:00:58]}  fxe4 {[%clk 0:00:26]} 48. Ke2 {[%clk 0:00:59]}  Kg4 {[%clk 0:00:24]} 49. Ke3 {[%clk 0:00:59]}  h5 {[%clk 0:00:17]} 50. Kxe4 {[%clk 0:00:59]}  h4 {[%clk 0:00:17]} 51. f5 {[%clk 0:00:59]}  h3 {[%clk 0:00:18]} 52. f6 {[%clk 0:01:00]}  h2 {[%clk 0:00:18]} 53. f7 {[%clk 0:01:01]}  h1=Q+ {[%clk 0:00:19]} 54. Ke5 {[%clk 0:00:57]}  Qa8 {[%clk 0:00:20]} 55. Kf6 {[%clk 0:00:57]}  Qf8 {[%clk 0:00:21]} 0-1


[Site "https://www.chess.com"]

[Event "Titled Tuesday Blitz January 10 Late 2023"]
[White "Carnicelli, Valerio"]
[Black "Urquhart, Ed"]
[WhiteFideId "856185"]
[BlackFideId "2603748"]
[WhiteElo "2370"]
[BlackElo "2209"]
[Result "0-1"]
[Round "03"]
[TimeControl "180+2"]
[Date "2023.01.10"]
[WhiteClock "0:00:01"]
[BlackClock "0:00:03"]

1. b3 {[%clk 0:00:00]}  Nf6 {[%clk 0:00:00]} 2. Bb2 {[%clk 0:03:00]}  e6 {[%clk 0:02:59]} 3. Nf3 {[%clk 0:03:00]}  d5 {[%clk 0:02:59]} 4. d3 {[%clk 0:02:58]}  Be7 {[%clk 0:02:59]} 5. g4 {[%clk 0:02:56]}  O-O {[%clk 0:02:58]} 6. g5 {[%clk 0:02:56]}  Ne8 {[%clk 0:02:57]} 7. h4 {[%clk 0:02:56]}  c5 {[%clk 0:02:54]} 8. Nbd2 {[%clk 0:02:57]}  Nc6 {[%clk 0:02:51]} 9. e4 {[%clk 0:02:56]}  b5 {[%clk 0:02:51]} 10. Qe2 {[%clk 0:02:54]}  a5 {[%clk 0:02:45]} 11. Rg1 {[%clk 0:02:50]}  Nb4 {[%clk 0:02:40]} 12. O-O-O {[%clk 0:02:46]}  Nxa2+ {[%clk 0:02:35]} 13. Kb1 {[%clk 0:02:32]}  Nb4 {[%clk 0:02:32]} 14. h5 {[%clk 0:02:33]}  d4 {[%clk 0:02:33]} 15. g6 {[%clk 0:02:33]}  Nf6 {[%clk 0:02:28]} 16. e5 {[%clk 0:02:30]}  Nfd5 {[%clk 0:02:22]} 17. gxh7+ {[%clk 0:02:26]}  Kh8 {[%clk 0:02:10]} 18. Ne4 {[%clk 0:02:25]}  a4 {[%clk 0:02:09]} 19. Nfg5 {[%clk 0:02:25]}  axb3 {[%clk 0:02:01]} 20. cxb3 {[%clk 0:02:19]}  Qa5 {[%clk 0:01:59]} 21. Qf3 {[%clk 0:02:20]}  Nc3+ {[%clk 0:01:57]} 22. Kc1 {[%clk 0:01:09]}  Qa2 {[%clk 0:01:49]} 23. Nd2 {[%clk 0:01:04]}  Bxg5 {[%clk 0:01:28]} 24. Rxg5 {[%clk 0:00:35]}  Qa7 {[%clk 0:01:17]} 25. Nb1 {[%clk 0:00:33]}  Bb7 {[%clk 0:00:42]} 26. Qf4 {[%clk 0:00:19]}  Nbd5 {[%clk 0:00:32]} 27. Qg3 {[%clk 0:00:15]}  Na2+ {[%clk 0:00:29]} 28. Kc2 {[%clk 0:00:14]}  Nab4+ {[%clk 0:00:21]} 29. Kd2 {[%clk 0:00:11]}  Qa2 {[%clk 0:00:15]} 30. Rxg7 {[%clk 0:00:11]}  Qxb2+ {[%clk 0:00:15]} 31. Ke1 {[%clk 0:00:05]}  Nc2+ {[%clk 0:00:15]} 32. Ke2 {[%clk 0:00:06]}  Nce3+ {[%clk 0:00:14]} 33. Rd2 {[%clk 0:00:05]}  Qxb1 {[%clk 0:00:14]} 34. fxe3 {[%clk 0:00:05]}  dxe3 {[%clk 0:00:10]} 35. Rd1 {[%clk 0:00:04]}  Qc2+ {[%clk 0:00:08]} 36. Kf3 {[%clk 0:00:04]}  Qxd1+ {[%clk 0:00:07]} 37. Kg2 {[%clk 0:00:04]}  Qxh5 {[%clk 0:00:07]} 38. Be2 {[%clk 0:00:04]}  Qh6 {[%clk 0:00:04]} 39. Rg5 {[%clk 0:00:02]}  Nf4+ {[%clk 0:00:04]} 40. Kg1 {[%clk 0:00:02]}  Ng6 {[%clk 0:00:02]} 41. Qg2 {[%clk 0:00:02]}  Kxh7 {[%clk 0:00:02]} 42. Qxb7 {[%clk 0:00:01]}  Kg7 {[%clk 0:00:03]} 43. Rg2 {[%clk 0:00:01]}  Rh8 {[%clk 0:00:03]} 44. Qf3 {[%clk 0:00:01]}  Qh1# {[%clk 0:00:03]} 0-1


[Site "https://www.chess.com"]

[Event "Titled Tuesday Blitz January 10 Late 2023"]
[White "Novikov, Evgenij"]
[Black "Solon, Nathan"]
[WhiteFideId "4125380"]
[BlackFideId "2017229"]
[WhiteElo "2276"]
[BlackElo "2306"]
[Result "1-0"]
[Round "03"]
[TimeControl "180+2"]
[Date "2023.01.10"]
[WhiteClock "0:00:17"]
[BlackClock "0:00:20"]

1. d4 {[%clk 0:00:00]}  Nf6 {[%clk 0:00:00]} 2. c4 {[%clk 0:03:00]}  c5 {[%clk 0:02:59]} 3. d5 {[%clk 0:03:00]}  b5 {[%clk 0:02:59]} 4. cxb5 {[%clk 0:03:00]}  a6 {[%clk 0:02:59]} 5. b6 {[%clk 0:03:01]}  a5 {[%clk 0:03:00]} 6. Nc3 {[%clk 0:03:02]}  Ba6 {[%clk 0:02:58]} 7. Nf3 {[%clk 0:03:02]}  d6 {[%clk 0:02:58]} 8. g3 {[%clk 0:03:00]}  g6 {[%clk 0:02:56]} 9. Bg2 {[%clk 0:02:36]}  Bg7 {[%clk 0:02:52]} 10. O-O {[%clk 0:02:36]}  O-O {[%clk 0:02:52]} 11. Re1 {[%clk 0:02:35]}  Nbd7 {[%clk 0:02:52]} 12. e4 {[%clk 0:02:35]}  Qxb6 {[%clk 0:02:51]} 13. Rb1 {[%clk 0:02:33]}  Ng4 {[%clk 0:02:48]} 14. Bg5 {[%clk 0:02:27]}  h6 {[%clk 0:02:47]} 15. Bxe7 {[%clk 0:02:18]}  Rfe8 {[%clk 0:02:40]} 16. Bh4 {[%clk 0:02:02]}  Nde5 {[%clk 0:02:39]} 17. Nxe5 {[%clk 0:02:02]}  Nxe5 {[%clk 0:02:19]} 18. g4 {[%clk 0:01:56]}  Nd3 {[%clk 0:02:20]} 19. Re3 {[%clk 0:01:38]}  c4 {[%clk 0:02:04]} 20. Qd2 {[%clk 0:01:26]}  Rab8 {[%clk 0:02:03]} 21. Bg3 {[%clk 0:01:11]}  g5 {[%clk 0:01:49]} 22. h4 {[%clk 0:01:04]}  Bd4 {[%clk 0:01:41]} 23. Rf3 {[%clk 0:01:02]}  f6 {[%clk 0:01:30]} 24. hxg5 {[%clk 0:00:57]}  hxg5 {[%clk 0:01:25]} 25. Bf1 {[%clk 0:00:55]}  Kg7 {[%clk 0:01:26]} 26. b3 {[%clk 0:00:46]}  Ne5 {[%clk 0:01:11]} 27. Bxe5 {[%clk 0:00:37]}  Bxe5 {[%clk 0:01:01]} 28. bxc4 {[%clk 0:00:37]}  Qa7 {[%clk 0:01:02]} 29. Nb5 {[%clk 0:00:37]}  Bxb5 {[%clk 0:00:49]} 30. Rxb5 {[%clk 0:00:36]}  Rxb5 {[%clk 0:00:44]} 31. cxb5 {[%clk 0:00:37]}  Rc8 {[%clk 0:00:39]} 32. Ra3 {[%clk 0:00:38]}  a4 {[%clk 0:00:35]} 33. Qe3 {[%clk 0:00:29]}  Qa5 {[%clk 0:00:29]} 34. Qf3 {[%clk 0:00:29]}  Rc1 {[%clk 0:00:24]} 35. Rd3 {[%clk 0:00:26]}  Qxb5 {[%clk 0:00:22]} 36. Rd1 {[%clk 0:00:22]}  Rc3 {[%clk 0:00:21]} 37. Qxc3 {[%clk 0:00:19]}  Qxf1+ {[%clk 0:00:20]} 38. Kxf1 {[%clk 0:00:16]}  Bxc3 {[%clk 0:00:19]} 39. Rc1 {[%clk 0:00:17]}  Be5 {[%clk 0:00:20]} 40. Rc6 {[%clk 0:00:17]} 1-0


[Site "https://www.chess.com"]

[Event "Titled Tuesday Blitz January 10 Late 2023"]
[White "Abrahamyan, Tatev"]
[Black "Andrews, Todd"]
[WhiteFideId "13301918"]
[BlackFideId "2012456"]
[WhiteElo "2294"]
[BlackElo "2220"]
[Result "1/2-1/2"]
[Round "03"]
[TimeControl "180+2"]
[Date "2023.01.10"]
[WhiteClock "0:01:50"]
[BlackClock "0:01:01"]

1. e4 {[%clk 0:00:00]}  e6 {[%clk 0:00:00]} 2. d4 {[%clk 0:03:00]}  d5 {[%clk 0:03:00]} 3. Nc3 {[%clk 0:03:00]}  Bb4 {[%clk 0:03:00]} 4. exd5 {[%clk 0:02:58]}  exd5 {[%clk 0:03:00]} 5. Bd3 {[%clk 0:02:58]}  Nc6 {[%clk 0:03:00]} 6. a3 {[%clk 0:02:59]}  Bxc3+ {[%clk 0:03:00]} 7. bxc3 {[%clk 0:02:57]}  Nge7 {[%clk 0:02:59]} 8. Qh5 {[%clk 0:02:57]}  Be6 {[%clk 0:02:58]} 9. Ne2 {[%clk 0:02:56]}  Qd7 {[%clk 0:02:55]} 10. Rb1 {[%clk 0:02:55]}  O-O-O {[%clk 0:02:54]} 11. O-O {[%clk 0:02:55]}  h6 {[%clk 0:02:43]} 12. Nf4 {[%clk 0:02:49]}  Bg4 {[%clk 0:02:36]} 13. Qxf7 {[%clk 0:02:40]}  Rdf8 {[%clk 0:02:34]} 14. Qxg7 {[%clk 0:02:35]}  Rhg8 {[%clk 0:02:28]} 15. Qxh6 {[%clk 0:02:34]}  Rh8 {[%clk 0:02:27]} 16. Qg5 {[%clk 0:02:31]}  Rfg8 {[%clk 0:02:03]} 17. Qf6 {[%clk 0:02:19]}  Rf8 {[%clk 0:01:57]} 18. Qg5 {[%clk 0:01:54]}  Rfg8 {[%clk 0:01:03]} 19. Qf6 {[%clk 0:01:50]}  Rf8 {[%clk 0:01:01]} 20. Qg5 {[%clk 0:01:50]} 1/2-1/2


[Site "https://www.chess.com"]

[Event "Titled Tuesday Blitz January 10 Late 2023"]
[White "Hsu, Li Yang"]
[Black "Sivakumar, Shaaketh"]
[WhiteFideId "5800080"]
[BlackFideId "30940176"]
[WhiteElo "2427"]
[BlackElo "2337"]
[Result "1-0"]
[Round "03"]
[TimeControl "180+2"]
[Date "2023.01.10"]
[WhiteClock "0:00:10"]
[BlackClock "0:00:06"]

1. Nf3 {[%clk 0:00:00]}  e6 {[%clk 0:00:00]} 2. g3 {[%clk 0:03:00]}  b5 {[%clk 0:03:00]} 3. Bg2 {[%clk 0:02:56]}  Bb7 {[%clk 0:02:56]} 4. O-O {[%clk 0:02:57]}  Nf6 {[%clk 0:02:55]} 5. d3 {[%clk 0:02:58]}  g6 {[%clk 0:02:55]} 6. Nbd2 {[%clk 0:02:56]}  Bg7 {[%clk 0:02:55]} 7. e4 {[%clk 0:02:55]}  O-O {[%clk 0:02:55]} 8. a4 {[%clk 0:02:56]}  b4 {[%clk 0:02:54]} 9. Re1 {[%clk 0:02:52]}  d6 {[%clk 0:02:53]} 10. Nc4 {[%clk 0:02:50]}  a5 {[%clk 0:02:52]} 11. Bd2 {[%clk 0:02:46]}  Nfd7 {[%clk 0:02:50]} 12. Qc1 {[%clk 0:02:41]}  Na6 {[%clk 0:02:46]} 13. Bh6 {[%clk 0:02:39]}  Nac5 {[%clk 0:02:39]} 14. Bxg7 {[%clk 0:02:37]}  Kxg7 {[%clk 0:02:32]} 15. Nfd2 {[%clk 0:02:36]}  Qf6 {[%clk 0:02:32]} 16. Nb3 {[%clk 0:02:12]}  e5 {[%clk 0:02:19]} 17. Nxc5 {[%clk 0:01:51]}  dxc5 {[%clk 0:02:18]} 18. c3 {[%clk 0:01:46]}  Nb6 {[%clk 0:02:13]} 19. Ne3 {[%clk 0:01:40]}  Qd6 {[%clk 0:02:05]} 20. Ng4 {[%clk 0:01:33]}  h5 {[%clk 0:02:03]} 21. Qh6+ {[%clk 0:01:26]}  Kg8 {[%clk 0:01:55]} 22. Ne3 {[%clk 0:01:23]}  Rad8 {[%clk 0:01:52]} 23. Red1 {[%clk 0:01:22]}  Rd7 {[%clk 0:01:30]} 24. Bh3 {[%clk 0:01:19]}  Re7 {[%clk 0:01:26]} 25. Qg5 {[%clk 0:01:11]}  Kh8 {[%clk 0:01:24]} 26. cxb4 {[%clk 0:01:11]}  cxb4 {[%clk 0:00:44]} 27. b3 {[%clk 0:00:32]}  Nd7 {[%clk 0:00:43]} 28. Nc4 {[%clk 0:00:24]}  Qf6 {[%clk 0:00:39]} 29. Qxf6+ {[%clk 0:00:16]}  Nxf6 {[%clk 0:00:31]} 30. Nxa5 {[%clk 0:00:15]}  Ba6 {[%clk 0:00:31]} 31. Nc6 {[%clk 0:00:15]}  Ree8 {[%clk 0:00:19]} 32. Nxb4 {[%clk 0:00:14]}  Bb7 {[%clk 0:00:20]} 33. Rac1 {[%clk 0:00:14]}  Re7 {[%clk 0:00:18]} 34. Rc3 {[%clk 0:00:14]}  Rd8 {[%clk 0:00:17]} 35. Rdc1 {[%clk 0:00:13]}  c6 {[%clk 0:00:18]} 36. Nxc6 {[%clk 0:00:14]}  Bxc6 {[%clk 0:00:15]} 37. Rxc6 {[%clk 0:00:13]}  Rxd3 {[%clk 0:00:16]} 38. Rxf6 {[%clk 0:00:14]}  Rxb3 {[%clk 0:00:16]} 39. a5 {[%clk 0:00:13]}  Ra7 {[%clk 0:00:16]} 40. a6 {[%clk 0:00:13]}  Kg7 {[%clk 0:00:16]} 41. Rfc6 {[%clk 0:00:13]}  Ra3 {[%clk 0:00:16]} 42. Bc8 {[%clk 0:00:13]}  Ra2 {[%clk 0:00:17]} 43. Rc7 {[%clk 0:00:13]}  Ra8 {[%clk 0:00:16]} 44. Bb7 {[%clk 0:00:13]}  Ra7 {[%clk 0:00:15]} 45. Bd5 {[%clk 0:00:13]}  R7xa6 {[%clk 0:00:16]} 46. Rxf7+ {[%clk 0:00:13]}  Kh6 {[%clk 0:00:16]} 47. Bxa2 {[%clk 0:00:12]}  Rxa2 {[%clk 0:00:17]} 48. Rcc7 {[%clk 0:00:12]}  Kg5 {[%clk 0:00:15]} 49. Kg2 {[%clk 0:00:12]}  h4 {[%clk 0:00:16]} 50. gxh4+ {[%clk 0:00:11]}  Kxh4 {[%clk 0:00:15]} 51. Rf3 {[%clk 0:00:10]}  g5 {[%clk 0:00:16]} 52. Rg3 {[%clk 0:00:10]}  Kh5 {[%clk 0:00:15]} 53. Rg7 {[%clk 0:00:10]}  Rb2 {[%clk 0:00:15]} 54. R7xg5+ {[%clk 0:00:10]}  Kh4 {[%clk 0:00:06]} 55. R3g4# {[%clk 0:00:10]} 1-0


[Site "https://www.chess.com"]

[Event "Titled Tuesday Blitz January 10 Late 2023"]
[White "Thomforde-Toates, Noah"]
[Black "Dudzinski, Pawel"]
[WhiteFideId "30951992"]
[BlackFideId "1117890"]
[WhiteElo "2124"]
[BlackElo "2186"]
[Result "0-1"]
[Round "03"]
[TimeControl "180+2"]
[Date "2023.01.10"]
[WhiteClock "0:00:19"]
[BlackClock "0:00:05"]

1. d4 {[%clk 0:00:00]}  c6 {[%clk 0:00:00]} 2. Nc3 {[%clk 0:02:37]}  d5 {[%clk 0:02:59]} 3. Bf4 {[%clk 0:02:34]}  Nf6 {[%clk 0:02:59]} 4. e3 {[%clk 0:02:34]}  Bf5 {[%clk 0:02:55]} 5. Bd3 {[%clk 0:02:33]}  g6 {[%clk 0:02:55]} 6. Nf3 {[%clk 0:02:30]}  Nbd7 {[%clk 0:02:44]} 7. O-O {[%clk 0:02:29]}  Bg7 {[%clk 0:02:37]} 8. Qe2 {[%clk 0:02:25]}  Bxd3 {[%clk 0:02:36]} 9. cxd3 {[%clk 0:02:24]}  O-O {[%clk 0:02:35]} 10. e4 {[%clk 0:02:23]}  dxe4 {[%clk 0:02:35]} 11. dxe4 {[%clk 0:02:11]}  Re8 {[%clk 0:02:34]} 12. Rfd1 {[%clk 0:02:10]}  Qa5 {[%clk 0:02:28]} 13. Ne5 {[%clk 0:02:08]}  Nxe5 {[%clk 0:02:24]} 14. Bxe5 {[%clk 0:02:05]}  Rad8 {[%clk 0:02:06]} 15. a3 {[%clk 0:02:06]}  Nd7 {[%clk 0:01:53]} 16. Bxg7 {[%clk 0:01:56]}  Kxg7 {[%clk 0:01:21]} 17. b4 {[%clk 0:01:48]}  Qc7 {[%clk 0:01:20]} 18. e5 {[%clk 0:01:48]}  Nb6 {[%clk 0:01:15]} 19. h4 {[%clk 0:01:40]}  Qd7 {[%clk 0:01:10]} 20. Rac1 {[%clk 0:01:35]}  Nd5 {[%clk 0:00:52]} 21. Ne4 {[%clk 0:01:22]}  f5 {[%clk 0:00:51]} 22. Nc5 {[%clk 0:01:19]}  Qc8 {[%clk 0:00:51]} 23. b5 {[%clk 0:01:15]}  cxb5 {[%clk 0:00:51]} 24. h5 {[%clk 0:01:08]}  b6 {[%clk 0:00:47]} 25. Nd3 {[%clk 0:00:50]}  Qe6 {[%clk 0:00:36]} 26. Qf3 {[%clk 0:00:35]}  Rc8 {[%clk 0:00:32]} 27. Qh3 {[%clk 0:00:32]}  Rc4 {[%clk 0:00:24]} 28. h6+ {[%clk 0:00:28]}  Kg8 {[%clk 0:00:20]} 29. Nb2 {[%clk 0:00:27]}  Rxc1 {[%clk 0:00:17]} 30. Rxc1 {[%clk 0:00:25]}  Rc8 {[%clk 0:00:14]} 31. Rxc8+ {[%clk 0:00:25]}  Qxc8 {[%clk 0:00:15]} 32. Qb3 {[%clk 0:00:23]}  e6 {[%clk 0:00:16]} 33. Kh2 {[%clk 0:00:22]}  Qc1 {[%clk 0:00:14]} 34. Nd3 {[%clk 0:00:22]}  Qxh6+ {[%clk 0:00:14]} 35. Kg1 {[%clk 0:00:20]}  Qd2 {[%clk 0:00:14]} 36. Kh2 {[%clk 0:00:21]}  f4 {[%clk 0:00:14]} 37. f3 {[%clk 0:00:21]}  Ne3 {[%clk 0:00:13]} 38. Nxf4 {[%clk 0:00:21]}  Nf1+ {[%clk 0:00:11]} 39. Kg1 {[%clk 0:00:21]}  Qxf4 {[%clk 0:00:09]} 40. Kxf1 {[%clk 0:00:21]}  Kf7 {[%clk 0:00:09]} 41. Qc3 {[%clk 0:00:22]}  g5 {[%clk 0:00:09]} 42. Qc7+ {[%clk 0:00:21]}  Kg6 {[%clk 0:00:07]} 43. Qc2+ {[%clk 0:00:21]}  Qf5 {[%clk 0:00:08]} 44. Qd2 {[%clk 0:00:21]}  Qb1+ {[%clk 0:00:07]} 45. Kf2 {[%clk 0:00:19]}  h6 {[%clk 0:00:08]} 46. d5 {[%clk 0:00:20]}  exd5 {[%clk 0:00:07]} 47. Qxd5 {[%clk 0:00:19]}  Qb2+ {[%clk 0:00:06]} 48. Kg3 {[%clk 0:00:20]}  Qxa3 {[%clk 0:00:06]} 49. Qe6+ {[%clk 0:00:20]}  Kg7 {[%clk 0:00:06]} 50. Qf6+ {[%clk 0:00:20]}  Kh7 {[%clk 0:00:05]} 51. Qf7+ {[%clk 0:00:21]}  Kh8 {[%clk 0:00:04]} 52. e6 {[%clk 0:00:21]}  Qd6+ {[%clk 0:00:05]} 53. Kg4 {[%clk 0:00:20]}  Qf4+ {[%clk 0:00:04]} 54. Qxf4 {[%clk 0:00:21]}  gxf4 {[%clk 0:00:04]} 55. Kf5 {[%clk 0:00:16]}  Kg8 {[%clk 0:00:03]} 56. Ke5 {[%clk 0:00:17]}  Kf8 {[%clk 0:00:04]} 57. Kd6 {[%clk 0:00:17]}  Ke8 {[%clk 0:00:04]} 58. g4 {[%clk 0:00:18]}  fxg3 {[%clk 0:00:05]} 59. f4 {[%clk 0:00:17]}  g2 {[%clk 0:00:04]} 60. f5 {[%clk 0:00:17]}  g1=Q {[%clk 0:00:04]} 61. f6 {[%clk 0:00:18]}  Qd4+ {[%clk 0:00:05]} 62. Kc6 {[%clk 0:00:19]}  Qxf6 {[%clk 0:00:05]} 0-1


[Site "https://www.chess.com"]